{"text_format":"3","workbook":"xlsx","n_sheets":1,"sheets":["แผ่นเวลารายปี"],"not_rendered":{"defined_names":2},"read":"whole","date_system":"1900"}

{"sheet":"แผ่นเวลารายปี","index":0,"n_rows":140,"n_cols":12,"rows_kept":140,"merged":[[0,1,1,11],[2,6,2,7],[2,8,2,9],[5,1,5,11],[15,3,15,4],[26,3,26,4],[37,3,37,4],[39,1,39,11],[49,3,49,4],[60,3,60,4],[71,3,71,4],[73,1,73,11],[83,3,83,4],[94,3,94,4],[105,3,105,4],[107,1,107,11],[117,3,117,4],[128,3,128,4],[139,3,139,4]]}
[null,"บัตรลงเวลาของพนักงาน"]
[]
[null,"ชื่อพนักงาน:",null,"อีเมล:",null,null,"ยอดรวมตั้งแต่ต้นปีถึงปัจจุบัน:"]
[null,"ผู้จัดการ:",null,"โทรศัพท์:",null,null,"ชม. ทำงานปกติ:",{"$f":"SUM(C16,C27,C38,C50,C61,C72,C84,C95,C106,C118,C129,C140)","v":0},"ชม. ทำงานล่วงเวลา:",{"$f":"SUM(F16,F27,F38,F50,F61,F72,F84,F95,F106,F118,F129,F140)","v":0},"ทั้งหมด:",{"$f":"SUM(H4,J4)","v":0}]
[]
[null,"มกราคม กุมภาพันธ์ มีนาคม      บัตรลงเวลาของพนักงาน: รายวัน รายสัปดาห์ รายเดือน รายปี"]
[null,"มกราคม","สัปดาห์ 1","ล่วงเวลา","สัปดาห์ 2","งานล่วงเวลา ","สัปดาห์ 3","งานล่วงเวลา  ","สัปดาห์ 4","งานล่วงเวลา   ","สัปดาห์ 5","งานล่วงเวลา    "]
[null,"วันจันทร์"]
[null,"วันอังคาร"]
[null,"วันพุธ"]
[null,"วันพฤหัสบดี"]
[null,"วันศุกร์"]
[null,"วันเสาร์"]
[null,"วันอาทิตย์"]
[null,"ผลรวมชั่วโมงทำงานรายสัปดาห์",{"$f":"SUBTOTAL(109,มกราคม[สัปดาห์ 1])","v":0},{"$f":"SUBTOTAL(109,มกราคม[ล่วงเวลา])","v":0},{"$f":"SUBTOTAL(109,มกราคม[สัปดาห์ 2])","v":0},{"$f":"SUBTOTAL(109,มกราคม[[งานล่วงเวลา ]])","v":0},{"$f":"SUBTOTAL(109,มกราคม[สัปดาห์ 3])","v":0},{"$f":"SUBTOTAL(109,มกราคม[[งานล่วงเวลา  ]])","v":0},{"$f":"SUBTOTAL(109,มกราคม[สัปดาห์ 4])","v":0},{"$f":"SUBTOTAL(109,มกราคม[[งานล่วงเวลา   ]])","v":0},{"$f":"SUBTOTAL(109,มกราคม[สัปดาห์ 5])","v":0},{"$f":"SUBTOTAL(109,มกราคม[[งานล่วงเวลา    ]])","v":0}]
[null,"ยอดรวม ม.ค.: ชั่วโมงทำงานปกติ",{"$f":"SUM(มกราคม[[#Totals],[สัปดาห์ 1]],มกราคม[[#Totals],[สัปดาห์ 2]],มกราคม[[#Totals],[สัปดาห์ 3]],มกราคม[[#Totals],[สัปดาห์ 4]],มกราคม[[#Totals],[สัปดาห์ 5]])","v":0},"ยอดรวม ม.ค.: ล่วงเวลา",null,{"$f":"SUM(มกราคม[[#Totals],[ล่วงเวลา]],มกราคม[[#Totals],[งานล่วงเวลา ]],มกราคม[[#Totals],[งานล่วงเวลา  ]],มกราคม[[#Totals],[งานล่วงเวลา   ]],มกราคม[[#Totals],[งานล่วงเวลา    ]])","v":0}]
[]
[null,"กุมภาพันธ์","สัปดาห์ 1","ล่วงเวลา","สัปดาห์ 2","งานล่วงเวลา ","สัปดาห์ 3","งานล่วงเวลา  ","สัปดาห์ 4","งานล่วงเวลา   ","สัปดาห์ 5","งานล่วงเวลา    "]
[null,"วันจันทร์"]
[null,"วันอังคาร"]
[null,"วันพุธ"]
[null,"วันพฤหัสบดี"]
[null,"วันศุกร์"]
[null,"วันเสาร์"]
[null,"วันอาทิตย์"]
[null,"ผลรวมชั่วโมงทำงานรายสัปดาห์",{"$f":"SUBTOTAL(109,กุมภาพันธ์[สัปดาห์ 1])","v":0},{"$f":"SUBTOTAL(109,กุมภาพันธ์[ล่วงเวลา])","v":0},{"$f":"SUBTOTAL(109,กุมภาพันธ์[สัปดาห์ 2])","v":0},{"$f":"SUBTOTAL(109,กุมภาพันธ์[[งานล่วงเวลา ]])","v":0},{"$f":"SUBTOTAL(109,กุมภาพันธ์[สัปดาห์ 3])","v":0},{"$f":"SUBTOTAL(109,กุมภาพันธ์[[งานล่วงเวลา  ]])","v":0},{"$f":"SUBTOTAL(109,กุมภาพันธ์[สัปดาห์ 4])","v":0},{"$f":"SUBTOTAL(109,กุมภาพันธ์[[งานล่วงเวลา   ]])","v":0},{"$f":"SUBTOTAL(109,กุมภาพันธ์[สัปดาห์ 5])","v":0},{"$f":"SUBTOTAL(109,กุมภาพันธ์[[งานล่วงเวลา    ]])","v":0}]
[null,"ยอดรวม ก.พ.: ชั่วโมงทำงานปกติ",{"$f":"SUM(กุมภาพันธ์[[#Totals],[สัปดาห์ 1]],กุมภาพันธ์[[#Totals],[สัปดาห์ 2]],กุมภาพันธ์[[#Totals],[สัปดาห์ 3]],กุมภาพันธ์[[#Totals],[สัปดาห์ 4]],กุมภาพันธ์[[#Totals],[สัปดาห์ 5]])","v":0},"ยอดรวม ก.พ.: ล่วงเวลา",null,{"$f":"SUM(กุมภาพันธ์[[#Totals],[ล่วงเวลา]],กุมภาพันธ์[[#Totals],[งานล่วงเวลา ]],กุมภาพันธ์[[#Totals],[งานล่วงเวลา  ]],กุมภาพันธ์[[#Totals],[งานล่วงเวลา   ]],กุมภาพันธ์[[#Totals],[งานล่วงเวลา    ]])","v":0}]
[]
[null,"มีนาคม","สัปดาห์ 1","ล่วงเวลา","สัปดาห์ 2","งานล่วงเวลา ","สัปดาห์ 3","งานล่วงเวลา  ","สัปดาห์ 4","งานล่วงเวลา   ","สัปดาห์ 5","งานล่วงเวลา    "]
[null,"วันจันทร์"]
[null,"วันอังคาร"]
[null,"วันพุธ"]
[null,"วันพฤหัสบดี"]
[null,"วันศุกร์"]
[null,"วันเสาร์"]
[null,"วันอาทิตย์"]
[null,"ผลรวมชั่วโมงทำงานรายสัปดาห์",{"$f":"SUBTOTAL(109,มีนาคม[สัปดาห์ 1])","v":0},{"$f":"SUBTOTAL(109,มีนาคม[ล่วงเวลา])","v":0},{"$f":"SUBTOTAL(109,มีนาคม[สัปดาห์ 2])","v":0},{"$f":"SUBTOTAL(109,มีนาคม[[งานล่วงเวลา ]])","v":0},{"$f":"SUBTOTAL(109,มีนาคม[สัปดาห์ 3])","v":0},{"$f":"SUBTOTAL(109,มีนาคม[[งานล่วงเวลา  ]])","v":0},{"$f":"SUBTOTAL(109,มีนาคม[สัปดาห์ 4])","v":0},{"$f":"SUBTOTAL(109,มีนาคม[[งานล่วงเวลา   ]])","v":0},{"$f":"SUBTOTAL(109,มีนาคม[สัปดาห์ 5])","v":0},{"$f":"SUBTOTAL(109,มีนาคม[[งานล่วงเวลา    ]])","v":0}]
[null,"ยอดรวม มี.ค.: ชั่วโมงทำงานปกติ",{"$f":"SUM(มีนาคม[[#Totals],[สัปดาห์ 1]],มีนาคม[[#Totals],[สัปดาห์ 2]],มีนาคม[[#Totals],[สัปดาห์ 3]],มีนาคม[[#Totals],[สัปดาห์ 4]],มีนาคม[[#Totals],[สัปดาห์ 5]])","v":0},"ยอดรวม มี.ค.: ล่วงเวลา",null,{"$f":"SUM(มีนาคม[[#Totals],[ล่วงเวลา]],มีนาคม[[#Totals],[งานล่วงเวลา ]],มีนาคม[[#Totals],[งานล่วงเวลา  ]],มีนาคม[[#Totals],[งานล่วงเวลา   ]],มีนาคม[[#Totals],[งานล่วงเวลา    ]])","v":0}]
[]
[null,"เมษายน พฤษภาคม มิถุนายน      บัตรลงเวลาของพนักงาน: รายวัน รายสัปดาห์ รายเดือน รายปี"]
[null,"เมษายน","สัปดาห์ 1","ล่วงเวลา","สัปดาห์ 2","งานล่วงเวลา ","สัปดาห์ 3","งานล่วงเวลา  ","สัปดาห์ 4","งานล่วงเวลา   ","สัปดาห์ 5","งานล่วงเวลา    "]
[null,"วันจันทร์"]
[null,"วันอังคาร"]
[null,"วันพุธ"]
[null,"วันพฤหัสบดี"]
[null,"วันศุกร์"]
[null,"วันเสาร์"]
[null,"วันอาทิตย์"]
[null,"ผลรวมชั่วโมงทำงานรายสัปดาห์",{"$f":"SUBTOTAL(109,เมษายน[สัปดาห์ 1])","v":0},{"$f":"SUBTOTAL(109,เมษายน[ล่วงเวลา])","v":0},{"$f":"SUBTOTAL(109,เมษายน[สัปดาห์ 2])","v":0},{"$f":"SUBTOTAL(109,เมษายน[[งานล่วงเวลา ]])","v":0},{"$f":"SUBTOTAL(109,เมษายน[สัปดาห์ 3])","v":0},{"$f":"SUBTOTAL(109,เมษายน[[งานล่วงเวลา  ]])","v":0},{"$f":"SUBTOTAL(109,เมษายน[สัปดาห์ 4])","v":0},{"$f":"SUBTOTAL(109,เมษายน[[งานล่วงเวลา   ]])","v":0},{"$f":"SUBTOTAL(109,เมษายน[สัปดาห์ 5])","v":0},{"$f":"SUBTOTAL(109,เมษายน[[งานล่วงเวลา    ]])","v":0}]
[null,"ยอดรวม เม.ย.: ชั่วโมงทำงานปกติ",{"$f":"SUM(เมษายน[[#Totals],[สัปดาห์ 1]],เมษายน[[#Totals],[สัปดาห์ 2]],เมษายน[[#Totals],[สัปดาห์ 3]],เมษายน[[#Totals],[สัปดาห์ 4]],เมษายน[[#Totals],[สัปดาห์ 5]])","v":0},"ยอดรวม เม.ย.: ล่วงเวลา",null,{"$f":"SUM(เมษายน[[#Totals],[ล่วงเวลา]],เมษายน[[#Totals],[งานล่วงเวลา ]],เมษายน[[#Totals],[งานล่วงเวลา  ]],เมษายน[[#Totals],[งานล่วงเวลา   ]],เมษายน[[#Totals],[งานล่วงเวลา    ]])","v":0}]
[]
[null,"พฤษภาคม","สัปดาห์ 1","ล่วงเวลา","สัปดาห์ 2","งานล่วงเวลา ","สัปดาห์ 3","งานล่วงเวลา  ","สัปดาห์ 4","งานล่วงเวลา   ","สัปดาห์ 5","งานล่วงเวลา    "]
[null,"วันจันทร์"]
[null,"วันอังคาร"]
[null,"วันพุธ"]
[null,"วันพฤหัสบดี"]
[null,"วันศุกร์"]
[null,"วันเสาร์"]
[null,"วันอาทิตย์"]
[null,"ผลรวมชั่วโมงทำงานรายสัปดาห์",{"$f":"SUBTOTAL(109,พฤษภาคม[สัปดาห์ 1])","v":0},{"$f":"SUBTOTAL(109,พฤษภาคม[ล่วงเวลา])","v":0},{"$f":"SUBTOTAL(109,พฤษภาคม[สัปดาห์ 2])","v":0},{"$f":"SUBTOTAL(109,พฤษภาคม[[งานล่วงเวลา ]])","v":0},{"$f":"SUBTOTAL(109,พฤษภาคม[สัปดาห์ 3])","v":0},{"$f":"SUBTOTAL(109,พฤษภาคม[[งานล่วงเวลา  ]])","v":0},{"$f":"SUBTOTAL(109,พฤษภาคม[สัปดาห์ 4])","v":0},{"$f":"SUBTOTAL(109,พฤษภาคม[[งานล่วงเวลา   ]])","v":0},{"$f":"SUBTOTAL(109,พฤษภาคม[สัปดาห์ 5])","v":0},{"$f":"SUBTOTAL(109,พฤษภาคม[[งานล่วงเวลา    ]])","v":0}]
[null,"ยอดรวม พ.ค.: ชั่วโมงทำงานปกติ",{"$f":"SUM(พฤษภาคม[[#Totals],[สัปดาห์ 1]],พฤษภาคม[[#Totals],[สัปดาห์ 2]],พฤษภาคม[[#Totals],[สัปดาห์ 3]],พฤษภาคม[[#Totals],[สัปดาห์ 4]],พฤษภาคม[[#Totals],[สัปดาห์ 5]])","v":0},"ยอดรวม พ.ค.: ล่วงเวลา",null,{"$f":"SUM(พฤษภาคม[[#Totals],[ล่วงเวลา]],พฤษภาคม[[#Totals],[งานล่วงเวลา ]],พฤษภาคม[[#Totals],[งานล่วงเวลา  ]],พฤษภาคม[[#Totals],[งานล่วงเวลา   ]],พฤษภาคม[[#Totals],[งานล่วงเวลา    ]])","v":0}]
[]
[null,"มิถุนายน","สัปดาห์ 1","ล่วงเวลา","สัปดาห์ 2","งานล่วงเวลา ","สัปดาห์ 3","งานล่วงเวลา  ","สัปดาห์ 4","งานล่วงเวลา   ","สัปดาห์ 5","งานล่วงเวลา    "]
[null,"วันจันทร์"]
[null,"วันอังคาร"]
[null,"วันพุธ"]
[null,"วันพฤหัสบดี"]
[null,"วันศุกร์"]
[null,"วันเสาร์"]
[null,"วันอาทิตย์"]
[null,"ผลรวมชั่วโมงทำงานรายสัปดาห์",{"$f":"SUBTOTAL(109,มิถุนายน[สัปดาห์ 1])","v":0},{"$f":"SUBTOTAL(109,มิถุนายน[ล่วงเวลา])","v":0},{"$f":"SUBTOTAL(109,มิถุนายน[สัปดาห์ 2])","v":0},{"$f":"SUBTOTAL(109,มิถุนายน[[งานล่วงเวลา ]])","v":0},{"$f":"SUBTOTAL(109,มิถุนายน[สัปดาห์ 3])","v":0},{"$f":"SUBTOTAL(109,มิถุนายน[[งานล่วงเวลา  ]])","v":0},{"$f":"SUBTOTAL(109,มิถุนายน[สัปดาห์ 4])","v":0},{"$f":"SUBTOTAL(109,มิถุนายน[[งานล่วงเวลา   ]])","v":0},{"$f":"SUBTOTAL(109,มิถุนายน[สัปดาห์ 5])","v":0},{"$f":"SUBTOTAL(109,มิถุนายน[[งานล่วงเวลา    ]])","v":0}]
[null,"ยอดรวม มิ.ย.: ชั่วโมงทำงานปกติ",{"$f":"SUM(มิถุนายน[[#Totals],[สัปดาห์ 1]],มิถุนายน[[#Totals],[สัปดาห์ 2]],มิถุนายน[[#Totals],[สัปดาห์ 3]],มิถุนายน[[#Totals],[สัปดาห์ 4]],มิถุนายน[[#Totals],[สัปดาห์ 5]])","v":0},"ยอดรวม มิ.ย.: ล่วงเวลา",null,{"$f":"SUM(มิถุนายน[[#Totals],[ล่วงเวลา]],มิถุนายน[[#Totals],[งานล่วงเวลา ]],มิถุนายน[[#Totals],[งานล่วงเวลา  ]],มิถุนายน[[#Totals],[งานล่วงเวลา   ]],มิถุนายน[[#Totals],[งานล่วงเวลา    ]])","v":0}]
[]
[null,"กรกฎาคม สิงหาคม กันยายน      บัตรลงเวลาของพนักงาน: รายวัน รายสัปดาห์ รายเดือน รายปี"]
[null,"กรกฎาคม","สัปดาห์ 1","ล่วงเวลา","สัปดาห์ 2","งานล่วงเวลา ","สัปดาห์ 3","งานล่วงเวลา  ","สัปดาห์ 4","งานล่วงเวลา   ","สัปดาห์ 5","งานล่วงเวลา    "]
[null,"วันจันทร์"]
[null,"วันอังคาร"]
[null,"วันพุธ"]
[null,"วันพฤหัสบดี"]
[null,"วันศุกร์"]
[null,"วันเสาร์"]
[null,"วันอาทิตย์"]
[null,"ผลรวมชั่วโมงทำงานรายสัปดาห์",{"$f":"SUBTOTAL(109,กรกฎาคม[สัปดาห์ 1])","v":0},{"$f":"SUBTOTAL(109,กรกฎาคม[ล่วงเวลา])","v":0},{"$f":"SUBTOTAL(109,กรกฎาคม[สัปดาห์ 2])","v":0},{"$f":"SUBTOTAL(109,กรกฎาคม[[งานล่วงเวลา ]])","v":0},{"$f":"SUBTOTAL(109,กรกฎาคม[สัปดาห์ 3])","v":0},{"$f":"SUBTOTAL(109,กรกฎาคม[[งานล่วงเวลา  ]])","v":0},{"$f":"SUBTOTAL(109,กรกฎาคม[สัปดาห์ 4])","v":0},{"$f":"SUBTOTAL(109,กรกฎาคม[[งานล่วงเวลา   ]])","v":0},{"$f":"SUBTOTAL(109,กรกฎาคม[สัปดาห์ 5])","v":0},{"$f":"SUBTOTAL(109,กรกฎาคม[[งานล่วงเวลา    ]])","v":0}]
[null,"ยอดรวม ก.ค.: ชั่วโมงทำงานปกติ",{"$f":"SUM(กรกฎาคม[[#Totals],[สัปดาห์ 1]],กรกฎาคม[[#Totals],[สัปดาห์ 2]],กรกฎาคม[[#Totals],[สัปดาห์ 3]],กรกฎาคม[[#Totals],[สัปดาห์ 4]],กรกฎาคม[[#Totals],[สัปดาห์ 5]])","v":0},"ยอดรวม ก.ค.: ล่วงเวลา",null,{"$f":"SUM(กรกฎาคม[[#Totals],[ล่วงเวลา]],กรกฎาคม[[#Totals],[งานล่วงเวลา ]],กรกฎาคม[[#Totals],[งานล่วงเวลา  ]],กรกฎาคม[[#Totals],[งานล่วงเวลา   ]],กรกฎาคม[[#Totals],[งานล่วงเวลา    ]])","v":0}]
[]
[null,"สิงหาคม","สัปดาห์ 1","ล่วงเวลา","สัปดาห์ 2","งานล่วงเวลา ","สัปดาห์ 3","งานล่วงเวลา  ","สัปดาห์ 4","งานล่วงเวลา   ","สัปดาห์ 5","งานล่วงเวลา    "]
[null,"วันจันทร์"]
[null,"วันอังคาร"]
[null,"วันพุธ"]
[null,"วันพฤหัสบดี"]
[null,"วันศุกร์"]
[null,"วันเสาร์"]
[null,"วันอาทิตย์"]
[null,"ผลรวมชั่วโมงทำงานรายสัปดาห์",{"$f":"SUBTOTAL(109,สิงหาคม[สัปดาห์ 1])","v":0},{"$f":"SUBTOTAL(109,สิงหาคม[ล่วงเวลา])","v":0},{"$f":"SUBTOTAL(109,สิงหาคม[สัปดาห์ 2])","v":0},{"$f":"SUBTOTAL(109,สิงหาคม[[งานล่วงเวลา ]])","v":0},{"$f":"SUBTOTAL(109,สิงหาคม[สัปดาห์ 3])","v":0},{"$f":"SUBTOTAL(109,สิงหาคม[[งานล่วงเวลา  ]])","v":0},{"$f":"SUBTOTAL(109,สิงหาคม[สัปดาห์ 4])","v":0},{"$f":"SUBTOTAL(109,สิงหาคม[[งานล่วงเวลา   ]])","v":0},{"$f":"SUBTOTAL(109,สิงหาคม[สัปดาห์ 5])","v":0},{"$f":"SUBTOTAL(109,สิงหาคม[[งานล่วงเวลา    ]])","v":0}]
[null,"ยอดรวม ส.ค.: ชั่วโมงทำงานปกติ",{"$f":"SUM(สิงหาคม[[#Totals],[สัปดาห์ 1]],สิงหาคม[[#Totals],[สัปดาห์ 2]],สิงหาคม[[#Totals],[สัปดาห์ 3]],สิงหาคม[[#Totals],[สัปดาห์ 4]],สิงหาคม[[#Totals],[สัปดาห์ 5]])","v":0},"ยอดรวม ส.ค.: ล่วงเวลา",null,{"$f":"SUM(สิงหาคม[[#Totals],[ล่วงเวลา]],สิงหาคม[[#Totals],[งานล่วงเวลา ]],สิงหาคม[[#Totals],[งานล่วงเวลา  ]],สิงหาคม[[#Totals],[งานล่วงเวลา   ]],สิงหาคม[[#Totals],[งานล่วงเวลา    ]])","v":0}]
[]
[null,"กันยายน","สัปดาห์ 1","ล่วงเวลา","สัปดาห์ 2","งานล่วงเวลา ","สัปดาห์ 3","งานล่วงเวลา  ","สัปดาห์ 4","งานล่วงเวลา   ","สัปดาห์ 5","งานล่วงเวลา    "]
[null,"วันจันทร์"]
[null,"วันอังคาร"]
[null,"วันพุธ"]
[null,"วันพฤหัสบดี"]
[null,"วันศุกร์"]
[null,"วันเสาร์"]
[null,"วันอาทิตย์"]
[null,"ผลรวมชั่วโมงทำงานรายสัปดาห์",{"$f":"SUBTOTAL(109,กันยายน[สัปดาห์ 1])","v":0},{"$f":"SUBTOTAL(109,กันยายน[ล่วงเวลา])","v":0},{"$f":"SUBTOTAL(109,กันยายน[สัปดาห์ 2])","v":0},{"$f":"SUBTOTAL(109,กันยายน[[งานล่วงเวลา ]])","v":0},{"$f":"SUBTOTAL(109,กันยายน[สัปดาห์ 3])","v":0},{"$f":"SUBTOTAL(109,กันยายน[[งานล่วงเวลา  ]])","v":0},{"$f":"SUBTOTAL(109,กันยายน[สัปดาห์ 4])","v":0},{"$f":"SUBTOTAL(109,กันยายน[[งานล่วงเวลา   ]])","v":0},{"$f":"SUBTOTAL(109,กันยายน[สัปดาห์ 5])","v":0},{"$f":"SUBTOTAL(109,กันยายน[[งานล่วงเวลา    ]])","v":0}]
[null,"ยอดรวม ก.ย.: ชั่วโมงทำงานปกติ",{"$f":"SUM(กันยายน[[#Totals],[สัปดาห์ 1]],กันยายน[[#Totals],[สัปดาห์ 2]],กันยายน[[#Totals],[สัปดาห์ 3]],กันยายน[[#Totals],[สัปดาห์ 4]],กันยายน[[#Totals],[สัปดาห์ 5]])","v":0},"ยอดรวม ก.ย.: ล่วงเวลา",null,{"$f":"SUM(กันยายน[[#Totals],[ล่วงเวลา]],กันยายน[[#Totals],[งานล่วงเวลา ]],กันยายน[[#Totals],[งานล่วงเวลา  ]],กันยายน[[#Totals],[งานล่วงเวลา   ]],กันยายน[[#Totals],[งานล่วงเวลา    ]])","v":0}]
[]
[null,"ตุลาคม พฤศจิกายน ธันวาคม      บัตรลงเวลาของพนักงาน: รายวัน รายสัปดาห์ รายเดือน รายปี"]
[null,"ตุลาคม","สัปดาห์ 1","ล่วงเวลา","สัปดาห์ 2","งานล่วงเวลา ","สัปดาห์ 3","งานล่วงเวลา  ","สัปดาห์ 4","งานล่วงเวลา   ","สัปดาห์ 5","งานล่วงเวลา    "]
[null,"วันจันทร์"]
[null,"วันอังคาร"]
[null,"วันพุธ"]
[null,"วันพฤหัสบดี"]
[null,"วันศุกร์"]
[null,"วันเสาร์"]
[null,"วันอาทิตย์"]
[null,"ผลรวมชั่วโมงทำงานรายสัปดาห์",{"$f":"SUBTOTAL(109,ตุลาคม[สัปดาห์ 1])","v":0},{"$f":"SUBTOTAL(109,ตุลาคม[ล่วงเวลา])","v":0},{"$f":"SUBTOTAL(109,ตุลาคม[สัปดาห์ 2])","v":0},{"$f":"SUBTOTAL(109,ตุลาคม[[งานล่วงเวลา ]])","v":0},{"$f":"SUBTOTAL(109,ตุลาคม[สัปดาห์ 3])","v":0},{"$f":"SUBTOTAL(109,ตุลาคม[[งานล่วงเวลา  ]])","v":0},{"$f":"SUBTOTAL(109,ตุลาคม[สัปดาห์ 4])","v":0},{"$f":"SUBTOTAL(109,ตุลาคม[[งานล่วงเวลา   ]])","v":0},{"$f":"SUBTOTAL(109,ตุลาคม[สัปดาห์ 5])","v":0},{"$f":"SUBTOTAL(109,ตุลาคม[[งานล่วงเวลา    ]])","v":0}]
[null,"ยอดรวม ต.ค.: ชั่วโมงทำงานปกติ",{"$f":"SUM(ตุลาคม[[#Totals],[สัปดาห์ 1]],ตุลาคม[[#Totals],[สัปดาห์ 2]],ตุลาคม[[#Totals],[สัปดาห์ 3]],ตุลาคม[[#Totals],[สัปดาห์ 4]],ตุลาคม[[#Totals],[สัปดาห์ 5]])","v":0},"ยอดรวม ต.ค.: ล่วงเวลา",null,{"$f":"SUM(ตุลาคม[[#Totals],[ล่วงเวลา]],ตุลาคม[[#Totals],[งานล่วงเวลา ]],ตุลาคม[[#Totals],[งานล่วงเวลา  ]],ตุลาคม[[#Totals],[งานล่วงเวลา   ]],ตุลาคม[[#Totals],[งานล่วงเวลา    ]])","v":0}]
[]
[null,"พฤศจิกายน","สัปดาห์ 1","ล่วงเวลา","สัปดาห์ 2","งานล่วงเวลา ","สัปดาห์ 3","งานล่วงเวลา  ","สัปดาห์ 4","งานล่วงเวลา   ","สัปดาห์ 5","งานล่วงเวลา    "]
[null,"วันจันทร์"]
[null,"วันอังคาร"]
[null,"วันพุธ"]
[null,"วันพฤหัสบดี"]
[null,"วันศุกร์"]
[null,"วันเสาร์"]
[null,"วันอาทิตย์"]
[null,"ผลรวมชั่วโมงทำงานรายสัปดาห์",{"$f":"SUBTOTAL(109,พฤศจิกายน[สัปดาห์ 1])","v":0},{"$f":"SUBTOTAL(109,พฤศจิกายน[ล่วงเวลา])","v":0},{"$f":"SUBTOTAL(109,พฤศจิกายน[สัปดาห์ 2])","v":0},{"$f":"SUBTOTAL(109,พฤศจิกายน[[งานล่วงเวลา ]])","v":0},{"$f":"SUBTOTAL(109,พฤศจิกายน[สัปดาห์ 3])","v":0},{"$f":"SUBTOTAL(109,พฤศจิกายน[[งานล่วงเวลา  ]])","v":0},{"$f":"SUBTOTAL(109,พฤศจิกายน[สัปดาห์ 4])","v":0},{"$f":"SUBTOTAL(109,พฤศจิกายน[[งานล่วงเวลา   ]])","v":0},{"$f":"SUBTOTAL(109,พฤศจิกายน[สัปดาห์ 5])","v":0},{"$f":"SUBTOTAL(109,พฤศจิกายน[[งานล่วงเวลา    ]])","v":0}]
[null,"ยอดรวม พ.ย.: ชั่วโมงทำงานปกติ",{"$f":"SUM(พฤศจิกายน[[#Totals],[สัปดาห์ 1]],พฤศจิกายน[[#Totals],[สัปดาห์ 2]],พฤศจิกายน[[#Totals],[สัปดาห์ 3]],พฤศจิกายน[[#Totals],[สัปดาห์ 4]],พฤศจิกายน[[#Totals],[สัปดาห์ 5]])","v":0},"ยอดรวม พ.ย.: ล่วงเวลา",null,{"$f":"SUM(พฤศจิกายน[[#Totals],[ล่วงเวลา]],พฤศจิกายน[[#Totals],[งานล่วงเวลา ]],พฤศจิกายน[[#Totals],[งานล่วงเวลา  ]],พฤศจิกายน[[#Totals],[งานล่วงเวลา   ]],พฤศจิกายน[[#Totals],[งานล่วงเวลา    ]])","v":0}]
[]
[null,"ธันวาคม","สัปดาห์ 1","ล่วงเวลา","สัปดาห์ 2","ล่วงเวลา ","สัปดาห์ 3","ล่วงเวลา  ","สัปดาห์ 4","ล่วงเวลา   ","สัปดาห์ 5","งานล่วงเวลา    "]
[null,"วันจันทร์"]
[null,"วันอังคาร"]
[null,"วันพุธ"]
[null,"วันพฤหัสบดี"]
[null,"วันศุกร์"]
[null,"วันเสาร์"]
[null,"วันอาทิตย์"]
[null,"ผลรวมชั่วโมงทำงานรายสัปดาห์",{"$f":"SUBTOTAL(109,ธันวาคม[สัปดาห์ 1])","v":0},{"$f":"SUBTOTAL(109,ธันวาคม[ล่วงเวลา])","v":0},{"$f":"SUBTOTAL(109,ธันวาคม[สัปดาห์ 2])","v":0},{"$f":"SUBTOTAL(109,ธันวาคม[[ล่วงเวลา ]])","v":0},{"$f":"SUBTOTAL(109,ธันวาคม[สัปดาห์ 3])","v":0},{"$f":"SUBTOTAL(109,ธันวาคม[[ล่วงเวลา  ]])","v":0},{"$f":"SUBTOTAL(109,ธันวาคม[สัปดาห์ 4])","v":0},{"$f":"SUBTOTAL(109,ธันวาคม[[ล่วงเวลา   ]])","v":0},{"$f":"SUBTOTAL(109,ธันวาคม[สัปดาห์ 5])","v":0},{"$f":"SUBTOTAL(109,ธันวาคม[[งานล่วงเวลา    ]])","v":0}]
[null,"ยอดรวม ธ.ค.: ชั่วโมงทำงานปกติ",{"$f":"SUM(ธันวาคม[[#Totals],[สัปดาห์ 1]],ธันวาคม[[#Totals],[สัปดาห์ 2]],ธันวาคม[[#Totals],[สัปดาห์ 3]],ธันวาคม[[#Totals],[สัปดาห์ 4]],ธันวาคม[[#Totals],[สัปดาห์ 5]])","v":0},"ยอดรวม ธ.ค.: ล่วงเวลา",null,{"$f":"SUM(ธันวาคม[[#Totals],[ล่วงเวลา]],ธันวาคม[[#Totals],[ล่วงเวลา ]],ธันวาคม[[#Totals],[ล่วงเวลา  ]],ธันวาคม[[#Totals],[ล่วงเวลา   ]],ธันวาคม[[#Totals],[งานล่วงเวลา    ]])","v":0}]